bitfinex-derivatives/quotes_BNBF0:USTF0_20250112
["timestamp","ask_amount","ask_price","bid_price","bid_amount"]
[1736691062469,0.26503215,694.08,692.96,0.28861694]
[1736691062671,1.08226122,694.09,692.96,0.28861694]
[1736691062875,0.26503772,694.08,692.96,0.28861694]
[1736691063170,0.26503772,694.07,692.96,0.28861694]
[1736691063367,0.26503772,694.06,692.33,1.77159744]
[1736691063570,0.26503772,694.05,692.35,0.28887123]
[1736691063776,0.26503772,694.04,692.35,0.28887123]
[1736691063974,0.26503772,694.03,692.35,0.28887123]
[1736691064169,0.26503772,694.02,692.35,0.28887123]
[1736691064369,0.26503772,694.01,692.35,0.28887123]
[1736691064567,0.26503772,694.0,692.35,0.28887123]
[1736691064766,0.26503772,693.99,692.35,0.28887123]
[1736691064965,0.26503772,693.98,692.35,0.28887123]
[1736691065171,0.26503772,693.97,692.35,0.28887123]
[1736691065371,1.08226122,694.08,692.35,0.28887123]
[1736691065571,0.26505365,694.07,692.35,0.28887123]
[1736691065773,1.34731487,694.07,692.35,0.28887123]
[1736691065975,0.26505365,694.06,692.35,0.28887123]
[1736691066570,1.08226122,694.03,692.35,0.28887123]
[1736691066774,0.26505365,694.02,692.35,0.28887123]
[1736691067473,0.26505365,694.01,692.35,0.28887123]
[1736691067671,1.50617293,694.01,692.35,0.28887123]
[1736691071876,0.28818443,694.0,692.35,0.28887123]
[1736691076982,0.26506992,693.99,692.35,0.28887123]
[1736691077985,0.26506992,693.98,692.35,0.28887123]
[1736691078182,1.34733114,693.97,692.35,0.28887123]
[1736691078386,0.26506992,693.96,692.35,0.28887123]
[1736691078586,0.26506992,693.95,692.35,0.28887123]
[1736691078886,0.26506992,693.94,692.35,0.28887123]
[1736691079188,1.08226122,693.89,692.35,0.28887123]
[1736691079389,0.26506992,693.88,692.35,0.28887123]
[1736691080192,1.08226122,693.87,692.35,0.28887123]
[1736691080387,0.26506992,693.86,692.35,0.28887123]
[1736691081393,0.26506992,693.85,692.35,0.28887123]
[1736691081593,0.26506992,693.87,692.35,0.28887123]
[1736691081786,0.26509179,693.86,692.35,0.28887123]
[1736691081991,0.26509179,693.85,692.35,0.28887123]
[1736691082194,0.26509179,693.84,692.35,0.28887123]
[1736691082398,0.26509179,693.83,692.35,0.28887123]
[1736691082597,0.26509179,693.82,692.35,0.28887123]
[1736691082897,0.26509179,693.81,692.35,0.28887123]
[1736691083098,0.26509179,693.8,692.35,0.28887123]
[1736691083390,1.08226122,693.86,692.35,0.28887123]
[1736691084089,1.50633592,693.94,692.35,0.28887123]
[1736691084494,0.26504682,693.93,692.35,0.28887123]
[1736691084794,1.50633592,693.94,692.35,0.28887123]
[1736691086690,0.28818443,694.0,692.35,0.28887123]
[1736691092994,0.28818443,694.0,692.41,1.29823489]
[1736691093500,0.28818443,694.0,692.43,0.28883786]
[1736691095498,0.28818443,694.0,692.47,1.29823489]
[1736691095798,0.28818443,694.0,692.49,0.28881283]
[1736691104499,0.28818443,694.0,692.49,2.97747351]
[1736691105402,0.28818443,694.0,692.5,2.99944725]
[1736691105699,0.28818443,694.0,692.52,0.28880032]
[1736691107796,0.28818443,694.0,692.52,3.28824757]
[1736691108001,0.28818443,694.0,692.53,2.68866068]
[1736691108301,0.28818443,694.0,692.55,0.28878781]
[1736691109502,0.28818443,694.0,692.55,2.97744849]
[1736691110705,0.28818443,694.0,692.56,2.99944725]
[1736691110906,0.28818443,694.0,692.58,0.2887753]
[1736691112302,0.28818443,694.0,692.58,3.28822255]
[1736691112504,0.28818443,694.0,692.59,2.68866068]
[1736691112708,0.28818443,694.0,692.61,0.28876279]
[1736691114304,0.28818443,694.0,692.61,2.97742347]
[1736691115610,0.28818443,694.0,692.62,2.99944725]
[1736691115808,0.28818443,694.0,692.64,0.28875028]
[1736691116913,0.28818443,694.0,692.64,3.28819753]
[1736691117212,0.28818443,694.0,692.65,2.68866068]
[1736691117613,0.28818443,694.0,692.67,0.28873778]
[1736691119111,0.28818443,694.0,692.67,2.97739846]
[1736691120517,0.28818443,694.0,692.68,2.99944725]
[1736691120719,0.28818443,694.0,692.69,2.97739012]
[1736691120917,1.37044565,694.0,692.7,0.28872527]
[1736691121618,1.08226122,693.98,692.71,1.29823489]
[1736691122017,1.08226122,693.98,692.71,3.98689557]
[1736691122320,1.08226122,693.98,692.72,2.99944725]
[1736691122511,1.08226122,693.98,692.73,1.76333798]
[1736691122814,1.08226122,693.99,692.73,2.6888517]
[1736691123318,1.08226122,693.99,692.74,0.2887086]
[1736691123718,0.28818443,694.0,692.76,1.29823489]
[1736691124116,0.28818443,694.0,692.77,0.2886961]
[1736691126320,1.08226122,694.08,692.77,0.2886961]
[1736691126922,1.08226122,694.15,692.77,0.2886961]
[1736691128322,1.08226122,694.18,692.77,0.2886961]
[1736691130120,1.08226122,694.2,692.77,0.2886961]
[1736691130922,1.08226122,694.21,692.77,0.2886961]
[1736691134831,1.08226122,694.17,692.77,0.2886961]
[1736691136133,1.08226122,694.18,692.77,0.2886961]
[1736691139228,1.08226122,694.21,692.77,0.2886961]
[1736691141032,1.08226122,694.19,692.77,0.2886961]
[1736691142631,1.50548333,694.3,692.77,0.2886961]
[1736691142632,1.08226122,694.25,692.77,0.2886961]
[1736691145533,1.08226122,694.26,692.77,0.2886961]
[1736691146532,1.08226122,694.28,692.77,0.2886961]
[1736691147336,1.08226122,694.26,692.77,0.2886961]
[1736691148337,1.08226122,694.24,692.77,0.2886961]
[1736691149436,1.08226122,694.28,692.77,0.2886961]
[1736691150739,1.08226122,694.26,692.77,0.2886961]
[1736691151839,1.08226122,694.25,692.77,0.2886961]
[1736691152741,1.08226122,694.19,692.77,0.2886961]
[1736691153536,1.08226122,694.17,692.77,0.2886961]
[1736691154646,1.50548333,694.3,692.77,0.2886961]
[1736691154647,1.08226122,694.15,692.77,0.2886961]
[1736691155738,1.08226122,694.14,692.77,0.2886961]
[1736691156645,1.08226122,694.13,692.77,0.2886961]
[1736691157544,1.08226122,694.16,692.77,0.2886961]
[1736691158138,1.08226122,694.17,692.77,0.2886961]
[1736691159542,1.08226122,694.13,692.77,0.2886961]
[1736691161245,1.08226122,694.09,692.77,0.2886961]
[1736691162048,1.08226122,694.08,692.77,0.2886961]
[1736691163143,1.08226122,694.11,692.77,0.2886961]
[1736691164241,1.08226122,694.12,692.77,0.2886961]
[1736691165047,1.08226122,694.13,692.77,0.2886961]
[1736691166146,1.50548333,694.3,692.77,0.2886961]
[1736691166147,1.08226122,694.12,692.77,0.2886961]
[1736691167542,1.08226122,694.12,692.82,1.29823489]
[1736691167746,1.08226122,694.12,692.84,0.28866693]
[1736691168349,1.08226122,694.13,692.84,1.58690182]
[1736691170346,1.08226122,694.16,692.85,1.29823489]
[1736691170550,1.08226122,694.16,692.86,0.2886586]
[1736691170952,1.08226122,694.17,692.86,0.2886586]
[1736691171852,1.08226122,694.18,692.86,0.2886586]
[1736691172048,1.08226122,694.18,692.86,2.06266336]
[1736691172450,1.08226122,694.18,692.86,2.98971364]
[1736691172645,1.08226122,694.17,692.86,2.98971364]
[1736691173056,1.08226122,694.17,692.87,2.99944725]
[1736691173352,1.50535309,694.38,692.87,2.99944725]
[1736691173353,1.08226122,694.2,692.88,0.28865027]
[1736691175050,1.08226122,694.17,692.88,0.28865027]
[1736691178055,1.08226122,694.16,692.88,0.28865027]
[1736691182861,1.08226122,694.17,692.88,0.28865027]
[1736691183661,1.08226122,694.11,692.88,0.28865027]
[1736691184455,1.08226122,694.14,692.88,0.28865027]
[1736691185362,1.50535309,694.31,692.88,0.28865027]
[1736691185363,1.08226122,694.17,692.88,0.28865027]
[1736691186362,1.08226122,694.16,692.88,0.28865027]
[1736691187362,1.08226122,694.15,692.88,0.28865027]
[1736691187958,1.08226122,694.16,692.88,0.28865027]
[1736691189759,1.08226122,694.13,692.88,0.28865027]
[1736691193559,1.08226122,694.09,692.88,0.28865027]
[1736691196363,1.50554847,694.22,692.88,0.28865027]
[1736691196364,1.08226122,694.1,692.88,0.28865027]
[1736691197365,1.08226122,694.13,692.88,0.28865027]
[1736691198270,1.08226122,694.14,692.88,0.28865027]
[1736691199172,1.08226122,694.13,692.88,0.28865027]
[1736691200569,1.08226122,694.14,692.88,0.28865027]
[1736691201472,1.08226122,694.15,692.88,0.28865027]
[1736691202470,1.50554847,694.22,692.88,0.28865027]
[1736691202471,1.08226122,694.12,692.88,0.28865027]
[1736691203278,1.08226122,694.1,692.88,0.28865027]
[1736691204172,1.50554847,694.22,692.88,0.28865027]
[1736691204173,1.08226122,694.06,692.88,0.28865027]
[1736691205879,1.08226122,694.04,692.88,0.28865027]
[1736691206579,1.08226122,694.02,692.88,0.28865027]
[1736691207678,1.08226122,694.03,692.88,0.28865027]
[1736691209582,1.08226122,694.04,692.88,0.28865027]
[1736691210279,1.08226122,694.05,692.88,0.28865027]
[1736691211278,1.08226122,694.11,692.88,0.28865027]
[1736691211879,1.08226122,694.12,692.88,0.28865027]
[1736691215784,1.50560275,694.15,692.88,0.28865027]
[1736691215785,1.08226122,694.11,692.88,0.28865027]
[1736691217781,1.50560275,694.15,692.88,0.28865027]
[1736691217782,1.08226122,694.1,692.88,0.28865027]
[1736691218584,1.08226122,694.09,692.88,0.28865027]
[1736691220587,0.26496719,694.08,692.88,0.28865027]
[1736691221088,1.08226122,694.06,692.88,0.28865027]
[1736691221888,1.08226122,693.98,692.88,0.28865027]
[1736691222788,1.08226122,693.97,692.88,0.28865027]
[1736691224986,1.08226122,693.96,692.88,0.28865027]
[1736691227191,1.08226122,693.93,692.88,0.28865027]
[1736691228190,1.08226122,693.92,692.88,0.28865027]
[1736691229096,1.08226122,693.93,692.88,0.28865027]
[1736691231206,1.08226122,693.9,692.88,0.28865027]
[1736691232109,1.08226122,693.92,692.88,0.28865027]
[1736691233310,1.08226122,693.91,692.88,0.28865027]
[1736691234407,1.08226122,693.93,692.88,0.28865027]
[1736691235209,1.08226122,693.95,692.88,0.28865027]
[1736691236011,1.08226122,693.94,692.88,0.28865027]
[1736691238614,1.08226122,693.96,692.88,0.28865027]
[1736691241715,1.08226122,693.97,692.88,0.28865027]
[1736691243011,1.08226122,693.96,692.88,0.28865027]
[1736691245015,1.08226122,693.95,692.88,0.28865027]
[1736691246614,1.08226122,693.94,692.88,0.28865027]
[1736691249723,1.08226122,693.95,692.88,0.28865027]
[1736691252725,1.08226122,694.06,692.88,0.28865027]
[1736691253521,1.08226122,694.15,692.88,0.28865027]
[1736691254522,1.50562446,694.19,692.88,0.28865027]
[1736691254523,1.08226122,694.16,692.88,0.28865027]
[1736691256528,1.08226122,694.15,692.88,0.28865027]
[1736691257427,1.08226122,694.16,692.88,0.28865027]
[1736691258222,1.08226122,694.17,692.88,0.28865027]
[1736691261133,0.28811801,694.16,692.88,0.28865027]
[1736691261430,1.08226122,694.06,692.88,0.28865027]
[1736691263527,1.50590679,694.08,692.88,0.28865027]
[1736691263528,1.08226122,694.02,692.88,0.28865027]
[1736691264434,1.08226122,694.03,692.88,0.28865027]
[1736691265236,1.08226122,693.97,692.88,0.28865027]
[1736691267035,1.08226122,693.98,692.88,0.28865027]
[1736691267937,1.08226122,693.97,692.88,0.28865027]
[1736691268837,1.08226122,694.0,692.88,0.28865027]
[1736691269740,1.08226122,693.92,692.88,0.28865027]
[1736691270536,1.08226122,693.82,692.88,0.28865027]
[1736691271334,1.08226122,693.81,692.11,1.29823489]
[1736691271541,1.08226122,693.81,692.13,0.28896305]
[1736691272437,1.50641199,693.86,692.13,0.28896305]
[1736691275237,0.26512831,693.85,692.13,0.28896305]
[1736691277236,0.55337504,693.85,692.13,0.28896305]
[1736691277439,0.26512831,693.84,692.13,0.28896305]
[1736691277640,0.26513309,693.83,692.13,0.28896305]
[1736691277841,0.26513309,693.82,692.13,0.28896305]
[1736691278042,0.26513309,693.81,692.13,0.28896305]
[1736691278239,0.26513309,693.8,692.13,0.28896305]
[1736691278541,0.28824673,693.85,692.13,0.28896305]
[1736691278542,0.26513421,693.79,692.13,0.28896305]
[1736691278742,0.28824673,693.85,692.13,0.28896305]
[1736691278936,0.26513378,693.84,692.13,0.28896305]
[1736691280437,0.26513279,693.83,692.13,0.28896305]
[1736691280638,0.26513279,693.82,692.13,0.28896305]
[1736691280836,0.26513279,693.81,692.13,0.28896305]
[1736691281038,0.26513279,693.8,692.13,0.28896305]
[1736691281239,0.28824673,693.85,692.13,0.28896305]
[1736691281539,0.26513272,693.84,692.13,0.28896305]
[1736691282145,0.28825504,693.83,692.13,0.28896305]
[1736691282339,0.26513272,693.82,692.13,0.28896305]
[1736691283043,0.28825504,693.83,692.13,0.28896305]
[1736691283239,0.26514338,693.82,692.13,0.28896305]
[1736691285745,0.28825504,693.83,692.13,0.28896305]
[1736691285946,0.26513697,693.82,692.13,0.28896305]
[1736691286744,0.2651291,693.81,692.13,0.28896305]
[1736691287045,0.2651291,693.8,692.13,0.28896305]
[1736691287238,0.28825504,693.83,692.13,0.28896305]
[1736691287239,0.2651291,693.79,692.13,0.28896305]
[1736691287438,0.2651291,693.78,692.13,0.28896305]
[1736691287640,0.2651291,693.77,692.13,0.28896305]
[1736691290142,1.50671636,693.78,692.13,0.28896305]
[1736691300450,0.55345193,693.77,692.13,0.28896305]
[1736691300650,0.26517196,693.76,692.13,0.28896305]
[1736691301443,1.08226122,693.63,692.13,0.28896305]
[1736691301646,0.26517196,693.62,692.13,0.28896305]
[1736691302051,1.77219825,693.62,692.13,0.28896305]
[1736691302250,1.08226122,693.54,692.13,0.28896305]
[1736691302445,0.26517196,693.53,692.13,0.28896305]
[1736691302647,1.08226122,693.54,692.13,0.28896305]
[1736691303050,1.08226122,693.52,692.13,0.28896305]
[1736691304148,1.08226122,693.53,692.13,0.28896305]
[1736691305153,1.08226122,693.56,692.13,0.28896305]
[1736691305855,1.08226122,693.55,692.15,1.29823489]
[1736691306050,1.08226122,693.55,692.17,0.28894635]
[1736691306755,1.08226122,693.56,692.17,0.28894635]
[1736691307751,1.08226122,693.56,692.17,1.58718124]
[1736691308958,1.08226122,693.55,692.19,1.29823489]
[1736691309558,1.08226122,693.55,692.21,0.28892966]
[1736691310354,1.50686316,693.75,692.21,0.28892966]
[1736691310355,1.08226122,693.54,692.21,0.28892966]
[1736691311858,0.2651748,693.53,692.21,0.28892966]
[1736691312058,0.26517472,693.52,692.21,0.28892966]
[1736691312259,1.08226122,693.45,692.21,0.28892966]
[1736691313465,1.08226122,693.42,692.21,0.28892966]
[1736691314166,1.08226122,693.44,692.21,0.28892966]
[1736691315065,1.08226122,693.52,692.21,0.28892966]
[1736691316067,1.08226122,693.57,692.21,0.28892966]
[1736691316967,1.08226122,693.59,692.21,0.28892966]
[1736691317660,1.08226122,693.57,692.21,0.28892966]
[1736691318564,1.08226122,693.61,692.21,0.28892966]
[1736691319671,1.50690122,693.62,692.21,0.28892966]
[1736691323673,0.26520411,693.61,692.21,0.28892966]
[1736691325076,1.08226122,693.55,692.21,0.28892966]
[1736691325277,0.26520411,693.54,692.21,0.28892966]
[1736691325474,1.08226122,693.55,692.21,0.28892966]
[1736691325673,0.26520427,693.54,692.21,0.28892966]
[1736691325870,1.08226122,693.51,692.21,0.28892966]
[1736691326073,0.26520427,693.5,692.21,0.28892966]
[1736691327773,1.08226122,693.48,692.21,0.28892966]
[1736691328076,0.26520427,693.47,692.21,0.28892966]
[1736691328277,1.08226122,693.48,692.21,0.28892966]
[1736691328470,0.26521353,693.47,692.21,0.28892966]
[1736691329275,0.26520776,693.46,692.21,0.28892966]
[1736691329571,1.08226122,693.48,692.21,0.28892966]
[1736691329771,0.26520574,693.47,692.21,0.28892966]
[1736691330076,1.34746696,693.47,692.21,0.28892966]
[1736691330276,0.26520574,693.46,692.21,0.28892966]
[1736691330677,1.50690122,693.62,692.21,0.28892966]
[1736691330678,1.08226122,693.49,692.21,0.28892966]
[1736691330871,0.26520408,693.48,692.21,0.28892966]
[1736691331076,0.26520408,693.47,692.21,0.28892966]
[1736691331377,1.08226122,693.49,692.21,0.28892966]
[1736691331577,0.26520311,693.48,692.21,0.28892966]
[1736691332874,1.08226122,693.46,692.21,0.28892966]
[1736691333077,0.26520311,693.45,692.21,0.28892966]
[1736691333776,1.08226122,693.45,692.21,0.28892966]
[1736691334684,1.08226122,693.48,692.21,0.28892966]
[1736691335383,0.26520583,693.47,692.21,0.28892966]
[1736691335681,1.34746705,693.47,692.21,0.28892966]
[1736691335880,0.26520583,693.46,692.21,0.28892966]
[1736691336479,0.2652254,693.45,692.21,0.28892966]
[1736691336679,1.08226122,693.43,692.21,0.28892966]
[1736691336878,0.2652254,693.42,692.21,0.28892966]
[1736691337281,1.08226122,693.43,692.21,0.28892966]
[1736691337875,1.08226122,693.42,692.21,0.28892966]
[1736691338579,1.08226122,693.47,692.21,0.28892966]
[1736691341482,1.50694472,693.55,692.21,0.28892966]
[1736691342278,1.08226122,693.54,692.21,0.28892966]
[1736691343282,1.08226122,693.52,692.21,0.28892966]
[1736691343783,0.28838805,693.51,692.21,0.28892966]
[1736691344284,1.08226122,693.43,692.21,0.28892966]
[1736691344479,0.28842548,693.42,692.21,0.28892966]
[1736691345387,1.08226122,693.38,692.21,0.28892966]
[1736691345585,0.28844628,693.37,692.21,0.28892966]
[1736691346788,1.50765743,693.36,692.21,0.28892966]
[1736691351687,0.28844628,693.37,692.21,0.28892966]
[1736691366695,1.08226122,693.67,692.21,0.28892966]
[1736691366899,0.26516058,693.66,692.21,0.28892966]
[1736691367594,1.08226122,693.68,692.21,0.28892966]
[1736691367796,0.26513714,693.67,692.21,0.28892966]
[1736691368194,1.08226122,693.75,692.21,0.28892966]
[1736691368394,0.26512994,693.74,692.21,0.28892966]
[1736691369599,1.50665656,693.77,692.21,0.28892966]
[1736691369798,0.26511489,693.76,692.21,0.28892966]
[1736691370599,1.50665656,693.77,692.21,0.28892966]
[1736691370793,0.26511241,693.76,692.21,0.28892966]
[1736691373994,0.26511675,693.75,692.21,0.28892966]
[1736691374199,1.50665656,693.77,692.21,0.28892966]
[1736691374394,0.26511625,693.76,692.21,0.28892966]
[1736691374900,1.50665656,693.77,692.21,0.28892966]
[1736691375095,1.08226122,693.95,692.21,0.28892966]
[1736691375299,1.50645003,693.86,692.21,0.28892966]
[1736691375702,0.28820935,693.94,692.21,0.28892966]
[1736691375900,1.50635765,693.9,692.21,0.28892966]
[1736691376298,0.28820935,693.94,692.21,0.28892966]
[1736691376800,0.26505882,693.93,692.21,0.28892966]
[1736691381304,0.26506177,693.92,692.21,0.28892966]
[1736691381502,0.26506177,693.91,692.21,0.28892966]
[1736691381704,0.28820935,693.94,692.21,0.28892966]
[1736691381903,0.26506765,693.93,692.21,0.28892966]
[1736691382098,0.26506943,693.92,692.21,0.28892966]
[1736691382302,0.26506943,693.91,692.21,0.28892966]
[1736691382503,0.26506943,693.93,692.21,0.28892966]
[1736691382699,0.26506943,693.92,692.21,0.28892966]
[1736691382905,0.26506943,693.91,692.21,0.28892966]
[1736691383103,0.26506943,693.9,692.21,0.28892966]
[1736691383304,0.26506943,693.89,692.21,0.28892966]
[1736691383501,0.26506943,693.88,692.21,0.28892966]
[1736691383701,0.28820935,693.94,692.21,0.28892966]
[1736691383898,0.26508161,693.93,692.21,0.28892966]
[1736691384106,0.26508134,693.92,692.21,0.28892966]
[1736691384303,0.26508134,693.91,692.21,0.28892966]
[1736691384503,0.26508134,693.9,692.21,0.28892966]
[1736691384806,0.26508134,693.89,692.21,0.28892966]
[1736691385003,0.26508134,693.88,692.21,0.28892966]
[1736691385198,0.28820935,693.94,692.21,0.28892966]
[1736691385199,0.26508134,693.87,692.21,0.28892966]
[1736691385404,0.26508134,693.86,692.21,0.28892966]
[1736691385706,0.26508134,693.85,692.21,0.28892966]
[1736691385905,0.26508134,693.84,692.21,0.28892966]
[1736691386104,0.26508134,693.83,692.21,0.28892966]
[1736691386305,0.26508134,693.82,692.21,0.28892966]
[1736691386501,0.28820935,693.94,692.21,0.28892966]
[1736691386705,1.50641199,693.89,692.21,0.28892966]
[1736691386907,0.26508618,693.88,692.21,0.28892966]
[1736691387707,0.55332045,693.88,692.21,0.28892966]
[1736691387903,0.26508618,693.87,692.21,0.28892966]
[1736691389209,0.28823427,693.88,692.21,0.28892966]
[1736691389408,0.2651068,693.87,692.21,0.28892966]
[1736691390113,0.26508887,693.86,692.21,0.28892966]
[1736691390314,0.26508887,693.85,692.21,0.28892966]
[1736691390516,0.26508887,693.84,692.21,0.28892966]
[1736691390813,0.26508887,693.83,692.21,0.28892966]
[1736691391113,0.28823427,693.88,692.21,0.28892966]
[1736691391313,0.26508637,693.87,692.21,0.28892966]
[1736691392015,0.28823427,693.88,692.21,0.28892966]
[1736691392216,0.26508962,693.87,692.21,0.28892966]
[1736691395916,1.08226122,693.83,692.21,0.28892966]
[1736691396111,0.26508962,693.82,692.21,0.28892966]
[1736691396617,1.08226122,693.83,692.21,0.28892966]
[1736691396814,1.08226122,693.82,692.21,0.28892966]
[1736691397417,1.08226122,693.85,692.21,0.28892966]
[1736691397719,0.26509184,693.84,692.21,0.28892966]
[1736691398216,1.08226122,693.85,692.21,0.28892966]
[1736691398416,0.26509074,693.84,692.21,0.28892966]
[1736691398616,1.34735196,693.84,692.21,0.28892966]
[1736691398816,1.08226122,693.84,692.21,0.28892966]
[1736691399418,1.08226122,693.85,692.21,0.28892966]
[1736691400515,1.08226122,693.83,692.21,0.28892966]
[1736691401319,1.08226122,693.82,692.21,0.28892966]
[1736691402624,1.08226122,693.81,692.21,0.28892966]
[1736691403417,1.08226122,693.86,692.21,0.28892966]
[1736691404522,1.37049549,693.88,692.21,0.28892966]
[1736691405123,0.26504538,693.87,692.21,0.28892966]
[1736691405319,1.08226122,693.84,692.47,1.29823489]
[1736691405722,1.08226122,693.84,692.48,0.288817]
[1736691406219,0.28823427,693.88,692.48,0.288817]
[1736691414726,1.08226122,694.06,692.48,0.288817]
[1736691415320,2.58815715,694.18,692.48,0.288817]
[1736691416329,0.26497816,694.17,692.48,0.288817]
[1736691416526,1.50589593,694.18,692.48,0.288817]
[1736691416728,0.26497129,694.17,692.48,0.288817]
[1736691417427,1.50589593,694.18,692.48,0.288817]
[1736691418126,2.58815715,694.18,692.48,0.288817]
[1736691418821,1.50589593,694.18,692.48,0.288817]
[1736691419727,0.2649841,694.17,692.48,0.288817]
[1736691419922,1.50589593,694.18,692.48,0.288817]
[1736691437633,0.26500285,694.17,692.48,0.288817]
[1736691439437,1.50589593,694.18,692.48,0.288817]
[1736691439634,0.26502504,694.17,692.48,0.288817]
[1736691439835,0.5531389,694.17,692.48,0.288817]
[1736691440035,0.26502504,694.16,692.48,0.288817]
[1736691440236,1.08226122,694.09,692.48,0.288817]
[1736691440534,0.26502504,694.08,692.48,0.288817]
[1736691440929,1.77115994,694.08,692.48,0.288817]
[1736691441131,0.26502504,694.07,692.48,0.288817]
[1736691441330,1.08226122,694.04,692.48,0.288817]
[1736691441533,0.26502504,694.03,692.48,0.288817]
[1736691442030,1.08226122,694.04,692.48,0.288817]
[1736691442239,0.26505803,694.03,692.48,0.288817]
[1736691442537,1.08226122,693.99,692.48,0.288817]
[1736691442735,0.26505803,693.98,692.48,0.288817]
[1736691443637,1.34731925,693.98,692.48,0.288817]
[1736691443838,0.26505803,693.97,692.48,0.288817]
[1736691444235,0.28820104,693.96,692.48,0.288817]
[1736691444537,0.26505803,693.95,692.48,0.288817]
[1736691444738,1.34733324,693.94,692.48,0.288817]
[1736691444931,0.26507202,693.93,692.48,0.288817]
[1736691445537,0.26506922,693.92,692.48,0.288817]
[1736691445731,0.26506922,693.91,692.48,0.288817]
[1736691445931,1.08226122,693.94,692.48,0.288817]
[1736691446138,0.26507075,693.93,692.48,0.288817]
[1736691446738,0.26507075,693.92,692.48,0.288817]
[1736691446933,0.28820104,693.96,692.48,0.288817]
[1736691447134,0.26507154,693.95,692.48,0.288817]
[1736691447534,0.26506959,693.94,692.48,0.288817]
[1736691447737,0.26506959,693.93,692.48,0.288817]
[1736691448039,0.28820104,693.96,692.48,0.288817]
[1736691448241,0.26506901,693.95,692.48,0.288817]
[1736691451246,1.50631962,693.94,692.48,0.288817]
[1736691451439,0.26506901,693.93,692.48,0.288817]
[1736691452546,1.50631962,693.94,692.48,0.288817]
[1736691454345,0.28820104,693.96,692.48,0.288817]
[1736691473965,0.28141057,693.96,692.48,0.288817]
[1736691483973,1.36367179,693.96,692.48,0.288817]
[1736691485173,1.08226122,693.95,692.48,0.288817]
[1736691486278,1.36367179,693.96,692.48,0.288817]
[1736691487177,1.08226122,693.93,692.48,0.288817]
[1736691488377,1.08226122,693.92,692.48,0.288817]
[1736691489272,1.08226122,693.9,692.48,0.288817]
[1736691490472,1.08226122,693.92,692.48,0.288817]
[1736691491379,0.28141057,693.96,692.48,0.288817]
[1736691491380,1.08226122,693.89,692.48,0.288817]
[1736691491976,1.08226122,693.86,692.48,0.288817]
[1736691492874,1.08226122,693.85,692.48,0.288817]
[1736691493076,1.08226122,693.85,692.48,0.27359182]
[1736691493679,1.08226122,693.86,692.48,0.27359182]
[1736691494580,1.08226122,693.89,692.48,0.27359182]
[1736691495579,1.08226122,693.88,692.48,0.27359182]
[1736691496476,1.08226122,693.85,692.55,1.29823489]
[1736691497282,1.08226122,693.88,692.61,1.29823489]
[1736691497776,1.08226122,693.88,692.62,0.28875862]
[1736691498373,1.08226122,693.87,692.62,0.28875862]
[1736691499180,1.08226122,693.87,692.62,1.58699351]
[1736691499377,1.08226122,693.87,692.62,4.28492546]
[1736691499582,1.08226122,693.87,692.63,2.69793195]
[1736691499883,1.08226122,693.87,692.63,5.68988601]
[1736691500082,1.08226122,693.87,692.64,2.69793195]
[1736691500285,0.28141057,693.96,692.64,2.69793195]
[1736691500286,1.08226122,693.9,692.65,1.29823489]
[1736691500482,1.08226122,693.9,692.65,3.99616684]
[1736691500678,1.08226122,693.9,692.66,0.92704792]
[1736691501077,1.08226122,693.89,692.66,0.92704792]
[1736691501383,1.08226122,693.89,692.67,0.28873778]
[1736691501582,1.08226122,693.89,692.67,2.05962181]
[1736691501978,1.08226122,693.91,692.67,2.05962181]
[1736691502383,1.08226122,693.91,692.67,0.28873778]
[1736691502680,1.36367179,693.96,692.67,0.28873778]
[1736691503884,1.08226122,693.9,692.67,0.28873778]
[1736691505684,0.28141057,693.96,692.67,0.28873778]
[1736691505685,1.08226122,693.85,692.67,0.28873778]
[1736691506384,1.08226122,693.92,692.67,0.28873778]
[1736691507587,1.08226122,693.89,692.67,0.28873778]
[1736691509385,1.08226122,693.9,692.67,0.28873778]
[1736691513592,1.08226122,693.91,692.67,0.28873778]
[1736691514490,1.08226122,693.92,692.67,0.28873778]
[1736691515391,1.08226122,693.91,692.67,0.28873778]
[1736691516489,0.28141057,693.96,692.67,0.28873778]
[1736691516490,1.08226122,693.92,692.67,0.28873778]
[1736691517493,1.08226122,693.95,692.67,0.28873778]
[1736691518794,0.28141057,693.96,692.67,0.28873778]
[1736691518795,1.36367179,693.96,692.67,0.28873778]
[1736691519886,1.08226122,693.95,692.67,0.28873778]
[1736691520795,1.08226122,693.94,692.67,0.28873778]
[1736691521896,0.28141057,693.96,692.67,0.28873778]
[1736691530995,1.08226122,694.19,692.67,0.28873778]
[1736691531397,1.50567332,694.22,692.67,0.28873778]
[1736691531597,1.08226122,694.24,692.67,0.28873778]
[1736691532591,1.08226122,694.26,692.67,0.28873778]
[1736691534292,1.50540193,694.4,692.67,0.28873778]
[1736691540701,0.26490532,694.39,692.67,0.28873778]
[1736691540900,1.08226122,694.35,692.67,0.28873778]
[1736691541101,0.26490532,694.34,692.67,0.28873778]
[1736691541301,1.08226122,694.35,692.67,0.28873778]
[1736691541501,0.26490701,694.34,692.67,0.28873778]
[1736691542000,1.34716823,694.34,692.67,0.28873778]